bitfinex-derivatives/quotes_SOLF0:USTF0_20250821
["timestamp","ask_amount","ask_price","bid_price","bid_amount"]
[1755785810798,3.81704,186.04,185.97,3.06]
[1755785818209,3.81704,186.04,185.95,5.3782]
[1755785818420,3.81704,186.04,185.96,2.81]
[1755785820007,3.81704,186.04,185.96,8.1878]
[1755785820207,3.81704,186.04,185.96,2.81]
[1755785820417,2.82,186.03,185.96,2.81]
[1755785820813,2.82,186.03,185.92,2.81]
[1755785821607,3.81704,186.04,185.94,5.34237789]
[1755785821919,6.63704,186.04,185.95,2.81]
[1755785822318,2.82,186.03,185.91,2.81]
[1755785822515,2.82,186.01,185.91,2.81]
[1755785822719,2.82,185.98,185.87,2.81]
[1755785823115,8.16237789,185.98,185.87,2.81]
[1755785823823,8.16237789,185.98,185.87,8.1906]
[1755785824122,2.82,185.98,185.87,2.81]
[1755785824324,2.82,185.98,185.89,2.81]
[1755785825012,2.82,186.02,185.92,2.81]
[1755785826515,5.34237789,186.01,185.88,8.15237789]
[1755785826823,2.82,186.0,185.88,2.81]
[1755785827021,2.82,186.0,185.88,8.1903]
[1755785827213,2.82,186.0,185.88,2.81]
[1755785827518,2.82,185.97,185.85,5.34237789]
[1755785827718,2.82,185.97,185.83,119.91829103]
[1755785828017,2.82,185.97,185.88,5.3802]
[1755785828220,2.82,185.97,185.86,2.81]
[1755785828423,2.82,185.96,185.86,2.81]
[1755785828625,2.82,185.96,185.86,8.1908]
[1755785828823,2.82,185.96,185.86,2.81]
[1755785829126,2.82,185.96,185.87,5.3806]
[1755785829323,2.82,185.96,185.86,2.81]
[1755785829622,2.82,185.96,185.89,5.3799]
[1755785829822,2.82,185.96,185.86,2.81]
[1755785830123,2.82,185.96,185.86,8.1908]
[1755785830319,8.16237789,185.96,185.86,2.81]
[1755785830515,5.34237789,185.93,185.83,117.10829103]
[1755785830722,2.82,185.92,185.83,117.10829103]
[1755785831726,3.81704,186.04,185.84,2.81]
[1755785831727,8.16237789,185.96,185.84,2.81]
[1755785832019,2.82,185.92,185.83,117.10829103]
[1755785832224,2.82,185.89,185.8,2.81]
[1755785832421,8.16237789,185.89,185.76,4.40924919]
[1755785832723,5.34237789,185.86,185.76,2.81]
[1755785832927,5.34237789,185.83,185.73,2.81]
[1755785833117,5.34237789,185.83,185.75,5.3841]
[1755785833322,5.34237789,185.83,185.73,2.81]
[1755785833523,2.82,185.85,185.73,2.81]
[1755785833723,5.34237789,185.89,185.75,5.34237789]
[1755785833924,5.34237789,185.89,185.76,2.81]
[1755785834231,2.82,185.9,185.81,5.3822]
[1755785834428,2.82,185.9,185.79,2.81]
[1755785835417,2.82,185.9,185.79,7.21924919]
[1755785835832,2.82,185.9,185.82,5.3821]
[1755785836124,2.82,185.9,185.79,7.21924919]
[1755785836331,2.82,185.9,185.82,5.3819]
[1755785836828,2.82,185.9,185.81,5.3823]
[1755785837018,2.82,185.95,185.8,2.81]
[1755785837217,2.82,185.95,185.82,7.21924919]
[1755785837218,8.16237789,185.95,185.82,7.21924919]
[1755785837420,8.16237789,185.95,185.82,4.40924919]
[1755785837621,2.82,185.95,185.84,5.34237789]
[1755785837827,2.82,185.95,185.84,9.75162708]
[1755785838027,2.82,185.94,185.83,2.81]
[1755785838227,8.16237789,185.94,185.83,2.81]
[1755785838430,2.82,185.94,185.83,2.81]
[1755785838626,2.82,185.94,185.84,2.81]
[1755785838833,2.82,185.94,185.84,12.56162708]
[1755785839032,5.34237789,185.98,185.88,5.3803]
[1755785839231,8.16237789,185.99,185.87,2.81]
[1755785839635,8.16237789,185.99,185.89,5.38]
[1755785840136,2.82,185.99,185.93,5.3789]
[1755785840332,6.63704,186.04,185.91,2.81]
[1755785840633,6.63704,186.04,185.95,5.3781]
[1755785840936,6.63704,186.04,185.93,5.34237789]
[1755785841124,6.63704,186.04,185.94,2.81]
[1755785841734,6.63704,186.04,185.95,5.3782]
[1755785841933,6.63704,186.04,185.94,2.81]
[1755785844532,5.34237789,186.03,185.9,9.75162708]
[1755785844737,2.92,186.02,185.9,2.9]
[1755785844930,2.92,186.02,185.9,4.40924919]
[1755785845130,2.92,186.02,185.93,5.3789]
[1755785845430,2.92,186.02,185.91,7.30924919]
[1755785845833,2.92,186.02,185.91,2.9]
[1755785846230,5.34237789,186.03,185.91,2.9]
[1755785847236,5.34237789,186.03,185.91,8.2793]
[1755785847441,2.92,186.02,185.91,2.9]
[1755785847638,2.92,186.02,185.91,8.2794]
[1755785848027,2.92,186.02,185.91,2.9]
[1755785848234,2.92,186.02,185.91,8.2793]
[1755785848633,2.92,186.02,185.91,2.9]
[1755785848834,2.92,186.02,185.91,8.2794]
[1755785849036,2.92,186.02,185.91,2.9]
[1755785849741,2.92,185.99,185.91,2.9]
[1755785850543,2.92,185.99,185.86,7.30924919]
[1755785850842,2.92,185.96,185.86,7.30924919]
[1755785851339,2.92,185.96,185.86,2.9]
[1755785851543,5.34237789,186.01,185.84,361.52]
[1755785851544,2.92,185.93,185.84,361.52]
[1755785852341,5.34237789,185.91,185.82,2.9]
[1755785852536,5.34237789,186.01,185.78,5.92734188]
[1755785852537,2.92,185.87,185.78,4.40924919]
[1755785852738,2.92,185.87,185.77,7.30924919]
[1755785852932,2.92,185.87,185.77,2.9]
[1755785853141,2.92,185.87,185.78,4.40924919]
[1755785853441,2.92,185.87,185.79,5.3827]
[1755785853649,5.34237789,186.01,185.8,2.9]
[1755785853650,2.92,185.92,185.8,2.9]
[1755785853836,2.92,185.92,185.8,7.30924919]
[1755785854140,5.34237789,185.97,185.83,2.9]
[1755785854444,2.92,185.97,185.86,2.9]
[1755785854645,2.92,185.97,185.86,8.2809]
[1755785854944,2.92,185.97,185.86,2.9]
[1755785855736,2.92,186.03,185.86,4.40924919]
[1755785855943,3.81704,186.04,185.92,2.9]
[1755785856137,3.81704,186.04,185.95,2.9]
[1755785856547,3.81704,186.04,185.95,7.30924919]
[1755785856746,3.81704,186.04,185.96,2.9]
[1755785857043,3.81704,186.04,185.98,2.9]
[1755785857444,3.81704,186.04,186.02,2.9]
[1755785857647,3.81704,186.04,186.03,2.9]
[1755785858343,1.0,186.06,186.0,2.9]
[1755785858640,1.0,186.06,186.0,8.2769]
[1755785858838,1.0,186.06,186.0,2.9]
[1755785860439,1.0,186.06,185.99,8.78810017]
[1755785860637,1.0,186.06,186.05,2.9]
[1755785860836,2.92,186.24,186.09,2.9]
[1755785861343,8.78810017,186.23,186.05,8.78810017]
[1755785861548,2.92,186.22,186.06,139.48]
[1755785861741,2.92,186.22,186.07,2.9]
[1755785861946,2.92,186.22,186.08,4.77745879]
[1755785862246,2.92,186.22,186.07,2.9]
[1755785862247,2.92,186.22,186.09,4.77745879]
[1755785862450,2.92,186.22,186.1,4.77745879]
[1755785862742,2.92,186.22,186.11,4.77745879]
[1755785862944,2.92,186.22,186.04,139.52]
[1755785863250,2.92,186.22,186.05,4.77422439]
[1755785863548,2.92,186.22,186.06,4.77422439]
[1755785863841,2.92,186.22,186.04,139.52]
[1755785864042,2.92,186.18,186.05,4.77222671]
[1755785864339,2.92,186.18,186.06,4.77126051]
[1755785864548,2.92,186.18,186.07,4.77126051]
[1755785864737,2.92,186.18,186.08,4.77126051]
[1755785864937,11.70810017,186.22,186.09,7.67126051]
[1755785865142,2.92,186.22,186.1,4.77126051]
[1755785865343,2.92,186.22,186.11,4.77126051]
[1755785865541,2.92,186.22,186.12,4.77126051]
[1755785865843,2.92,186.22,186.13,4.77126051]
[1755785866046,2.92,186.22,186.14,4.77177421]
[1755785866244,2.92,186.22,186.09,2.9]
[1755785866445,2.92,186.22,186.1,4.76948451]
[1755785866641,2.92,186.22,186.11,4.76948451]
[1755785866946,2.92,186.22,186.12,4.76948451]
[1755785867143,2.92,186.22,186.09,2.9]
[1755785867441,2.92,186.22,186.1,4.76990497]
[1755785867646,2.92,186.22,186.07,139.48]
[1755785867647,2.92,186.18,186.11,4.76990497]
[1755785867844,2.92,186.18,186.04,2.9]
[1755785868045,2.92,186.18,186.05,4.77154362]
[1755785868245,2.92,186.18,186.06,4.77154362]
[1755785868442,2.92,186.18,186.07,4.77154362]
[1755785868643,2.92,186.18,186.03,500.8]
[1755785868644,2.92,186.18,186.08,7.67154362]
[1755785868843,362.2,186.25,186.09,4.77154362]
[1755785869048,11.70810017,186.24,186.1,4.77154362]
[1755785869351,2.92,186.23,186.11,4.76573884]
[1755785869542,2.92,186.23,186.12,4.76573884]
[1755785869747,2.92,186.23,186.13,4.76573884]
[1755785869955,2.92,186.23,186.11,2.9]
[1755785870145,2.92,186.2,186.06,2.9]
[1755785870344,8.78810017,186.2,186.07,4.76614473]
[1755785870541,8.78810017,186.2,186.06,2.9]
[1755785870542,2.92,186.19,186.08,4.76614473]
[1755785870847,2.92,186.19,186.06,2.9]
[1755785871048,2.92,186.19,186.07,4.77004336]
[1755785871252,2.92,186.19,186.08,4.77004336]
[1755785871447,2.92,186.19,186.09,4.77004336]
[1755785871648,2.92,186.17,186.06,2.9]
[1755785871852,2.92,186.17,186.07,4.77016859]
[1755785872145,8.78810017,186.22,186.08,13.04476859]
[1755785872345,8.78810017,186.22,186.1,2.9]
[1755785872550,2.92,186.24,186.11,4.77016859]
[1755785872750,2.92,186.24,186.12,4.77016859]
[1755785873053,2.92,186.24,186.14,2.99]
[1755785875344,1.0,186.25,186.15,4.7639266]
[1755785875551,1.0,186.25,186.17,2.99]
[1755785875745,1.0,186.25,186.18,4.76068588]
[1755785875946,1.0,186.25,186.19,4.75982532]
[1755785876151,1.0,186.25,186.2,4.75982532]
[1755785876347,1.0,186.25,186.14,2.99]
[1755785876541,1.0,186.25,186.18,2.99]
[1755785876748,1.0,186.25,186.19,4.75689979]
[1755785876947,1.0,186.25,186.23,2.99]
[1755785877147,1.0,186.25,186.24,7.74468606]
[1755785877950,3.05,186.38,186.25,2.99]
[1755785878145,3.05,186.38,186.26,4.75468606]
[1755785878347,3.05,186.38,186.27,4.75468606]
[1755785878545,3.05,186.38,186.18,139.58]
[1755785878546,8.78810017,186.47,186.28,16.53278623]
[1755785878751,3.05,186.46,186.29,4.75468606]
[1755785878946,3.05,186.44,186.3,4.75468606]
[1755785879148,3.05,186.44,186.31,7.74468606]
[1755785879352,3.05,186.44,186.32,4.75468606]
[1755785879547,3.05,186.44,186.33,4.75468606]
[1755785879753,3.05,186.44,186.34,4.75468606]
[1755785879951,3.05,186.47,186.35,7.74468606]
[1755785880255,3.05,186.47,186.36,4.75468606]
[1755785880457,3.05,186.47,186.37,4.75468606]
[1755785880755,3.05,186.47,186.35,2.99]
[1755785880955,3.05,186.47,186.36,4.88551922]
[1755785881254,3.05,186.47,186.35,2.99]
[1755785881449,3.05,186.47,186.36,4.88812774]
[1755785881654,3.05,186.47,186.37,4.88812774]
[1755785881952,3.05,186.47,186.38,4.88182123]
[1755785882156,0.93370181,186.5,186.39,7.87182123]
[1755785882352,3.05,186.51,186.4,4.88182123]
[1755785882652,3.05,186.5,186.34,2.99]
[1755785882852,3.05,186.5,186.35,4.87420364]
[1755785883051,3.05,186.46,186.36,4.87420364]
[1755785883359,8.78810017,186.45,186.3,2.99]
[1755785883558,11.83810017,186.46,186.31,4.87430517]
[1755785883752,11.83810017,186.46,186.29,369.76810017]
[1755785883753,3.05,186.46,186.33,2.99]
[1755785884055,3.05,186.44,186.34,4.87430517]
[1755785884360,3.05,186.44,186.35,4.86985083]
[1755785884558,3.05,186.44,186.36,4.86985083]
[1755785884758,3.05,186.44,186.33,2.99]
[1755785884962,3.05,186.44,186.34,5.09515976]
[1755785885159,3.05,186.44,186.35,5.09515976]
[1755785885359,3.05,186.44,186.36,5.09515976]
[1755785885557,3.05,186.44,186.37,5.09515976]
[1755785885753,8.78810017,186.4,186.38,2.03515976]
[1755785885952,3.05,186.39,186.27,2.99]
[1755785886759,8.78810017,186.46,186.27,2.99]
[1755785887060,8.78810017,186.46,186.29,2.99]
[1755785887255,3.05,186.47,186.29,2.99]
[1755785887461,3.05,186.42,186.29,2.99]
[1755785889455,0.93357656,186.54,186.29,2.99]
[1755785889456,3.05,186.45,186.29,2.99]
[1755785890154,0.93357656,186.54,186.29,2.99]
[1755785890155,3.05,186.42,186.29,2.99]
[1755785890359,8.78810017,186.39,186.29,2.99]
[1755785890563,3.05,186.38,186.22,2.99]
[1755785890762,3.05,186.38,186.27,2.99]
[1755785893368,8.78810017,186.37,186.27,2.99]
[1755785893963,3.05,186.36,186.22,2.99]
[1755785894664,8.78810017,186.3,186.11,13.20587947]
[1755785894867,8.78810017,186.26,186.12,2.99]
[1755785895068,3.05,186.25,186.12,2.99]
[1755785895262,8.78810017,186.24,186.12,2.99]
[1755785895969,3.05,186.23,186.08,2.99]
[1755785897468,3.05,186.19,186.02,363.71]
[1755785897872,3.05,186.19,186.03,5.05936355]
[1755785898076,8.78810017,186.16,186.04,5.05936355]
[1755785898269,8.78810017,186.16,186.05,5.05936355]
[1755785898567,3.05,186.19,186.07,2.99]
[1755785898771,3.05,186.19,186.08,5.05936355]
[1755785898970,3.05,186.19,186.09,5.05936355]
[1755785899174,8.78810017,186.18,186.1,5.05936355]
[1755785899371,8.78810017,186.18,186.11,5.05936355]
[1755785899571,8.78810017,186.18,186.12,5.07809251]
[1755785899770,3.05,186.19,186.13,5.07809251]
[1755785900064,8.78810017,186.18,186.14,5.07809251]
[1755785900271,3.05,186.16,186.15,2.01809251]
[1755785900469,2.56,186.15,186.02,363.71]
[1755785900871,2.56,186.15,186.02,2.99]
[1755785901070,2.56,186.1,185.97,2.99]
[1755785901465,8.78810017,186.07,185.97,2.99]
[1755785901874,2.56,186.13,185.97,2.99]
[1755785902274,2.56,186.13,186.03,2.99]
[1755785902475,11.34810017,186.19,186.03,2.99]
[1755785902675,11.34810017,186.19,186.08,5.3745]
[1755785902974,11.34810017,186.19,186.08,3.06]
[1755785903376,2.56,186.14,186.02,3.06]
[1755785903571,8.78810017,186.15,186.02,3.06]
[1755785903773,2.56,186.18,186.02,3.06]
[1755785903969,2.56,186.14,185.99,3.06]
[1755785904381,2.56,186.14,186.03,8.436]
[1755785904569,8.78810017,186.19,186.03,3.06]
[1755785904877,11.34810017,186.19,186.03,3.06]
[1755785906174,11.34810017,186.19,186.04,3.06]
[1755785906878,141.6,186.26,186.04,3.06]
[1755785906879,8.78810017,186.15,186.04,3.06]
[1755785907076,2.56,186.14,185.99,3.06]
[1755785907277,2.56,186.14,186.02,5.3761]
[1755785907483,360.9,186.27,185.97,4.4177793]
[1755785907675,360.9,186.27,185.94,147.44734188]
[1755785907676,2.56,186.2,186.01,7.4777793]
[1755785907977,2.56,186.2,186.06,3.06]
[1755785908676,11.34810017,186.13,186.02,3.06]
[1755785908975,2.56,186.13,186.02,3.06]
[1755785909884,11.34810017,186.19,186.03,3.06]
[1755785910086,2.56,186.19,186.03,3.06]
[1755785910473,2.56,186.15,186.03,3.06]
[1755785911273,8.78810017,186.12,185.96,8.78810017]
[1755785911486,2.56,186.11,185.99,3.06]
[1755785912482,5.34291943,186.08,186.0,5.00046013]
[1755785912676,5.34291943,186.08,186.01,5.00046013]
[1755785912980,5.34291943,186.08,186.02,5.00046013]
[1755785913181,2.56,186.06,186.03,5.00046013]
[1755785913383,5.34291943,186.05,185.94,3.06]
[1755785913578,5.34291943,186.05,185.95,5.00007346]
[1755785913780,5.34291943,186.05,185.96,5.00007346]
[1755785914085,7.90291943,185.99,185.88,3.06]
[1755785914275,2.56,186.04,185.9,3.06]
[1755785914487,2.56,186.04,185.92,3.06]
[1755785914679,361.12,186.14,185.92,3.06]
[1755785914680,2.56,186.1,185.93,5.00021137]
[1755785914873,2.56,186.1,185.94,8.06021137]
[1755785915073,2.56,186.1,185.95,5.00021137]
[1755785915286,2.56,186.06,185.96,5.00021137]
[1755785915578,2.56,186.06,185.94,3.06]
[1755785915887,361.12,186.14,185.89,3.06]
[1755785915888,2.56,186.02,185.89,3.06]
[1755785916082,2.56,186.02,185.9,4.80743617]
[1755785916281,8.79736676,185.99,185.89,3.06]
[1755785916485,377.3,186.14,185.82,3.06]
[1755785916486,8.79736676,185.95,185.82,3.06]
[1755785916677,8.79736676,185.95,185.83,4.8064371]
[1755785916882,8.79736676,185.95,185.84,4.8064371]
[1755785917180,2.56,185.94,185.82,3.06]
[1755785917387,2.56,185.94,185.83,4.80138848]
[1755785917592,2.56,185.94,185.82,3.06]
[1755785917778,8.79736676,185.91,185.83,4.80134335]
[1755785917978,8.79736676,185.91,185.73,142.36]
[1755785918178,8.79736676,185.91,185.77,3.06]
[1755785918486,2.56,185.94,185.8,3.06]
[1755785918679,2.56,185.94,185.81,9.70686419]
[1755785918884,2.56,185.94,185.82,9.70686419]
[1755785919079,2.56,185.94,185.83,9.70686419]
[1755785919281,2.56,185.94,185.84,9.70686419]
[1755785919590,2.56,185.94,185.85,4.90425952]
[1755785919791,8.79736676,185.98,185.86,9.69633876]
[1755785920087,2.56,185.99,185.87,9.69633876]
[1755785920284,2.56,185.99,185.88,7.96425952]
[1755785920482,8.79736676,185.98,185.89,4.90425952]
[1755785920687,2.56,185.97,185.83,3.06]
[1755785920891,8.79736676,185.94,185.84,4.89591273]
[1755785921090,2.56,185.97,185.85,4.89591273]
[1755785921388,361.2,186.0,185.88,5.3802]
[1755785921589,361.2,186.0,185.89,4.89591273]
[1755785921893,361.2,186.0,185.87,3.06]
[1755785921894,8.79736676,185.98,185.9,4.89591273]
[1755785922086,8.79736676,185.98,185.87,3.06]
[1755785922285,2.56,185.99,185.88,4.88576673]
[1755785922489,2.56,185.99,185.89,4.88576673]
[1755785922685,2.56,185.99,185.9,4.88576673]
[1755785922886,8.79736676,185.97,185.78,151.27736676]
[1755785923184,8.79736676,185.97,185.83,3.06]
[1755785923485,8.79736676,185.97,185.84,4.8836489]
[1755785923692,8.79736676,185.97,185.85,4.8836489]
[1755785923891,8.79736676,185.93,185.83,3.06]
[1755785924091,8.79736676,185.93,185.84,4.87791015]
[1755785924285,8.79736676,185.93,185.85,4.87791015]
[1755785924483,8.79736676,185.93,185.83,3.06]
[1755785924688,8.79736676,185.93,185.84,4.87458997]
[1755785924890,8.79736676,185.93,185.83,3.06]
[1755785925088,2.56,185.96,185.84,4.8727494]
[1755785925288,2.56,185.96,185.83,3.06]
[1755785925289,2.56,185.96,185.85,4.8727494]
[1755785925489,2.56,185.96,185.86,4.8727494]
[1755785925685,2.56,185.96,185.87,4.8727494]
[1755785925885,8.79736676,185.99,185.88,4.8727494]
[1755785926088,361.2,186.0,185.9,3.06]
[1755785926289,2.56,186.01,185.91,4.8727494]
[1755785926592,2.56,186.01,185.92,4.8727494]
[1755785926789,11.35736676,186.01,185.93,4.8727494]
[1755785926993,11.35736676,186.01,185.9,3.06]
[1755785927290,11.35736676,186.01,185.85,8.4411]
[1755785927496,11.35736676,186.01,185.86,9.6329386]
[1755785927690,11.35736676,186.01,185.87,4.87042391]
[1755785927891,11.35736676,186.01,185.88,4.87042391]
[1755785928083,11.35736676,186.01,185.89,4.87042391]
[1755785928291,2.56,186.01,185.9,4.87042391]
[1755785928489,2.56,186.01,185.91,4.87042391]
[1755785928691,2.56,186.01,185.92,4.87042391]
[1755785928992,2.56,186.01,185.93,4.87042391]
[1755785929194,2.56,186.01,185.94,4.87042391]
[1755785929497,2.56,186.01,185.95,4.87042391]
[1755785929691,2.56,186.01,185.89,3.06]
[1755785929901,2.56,186.01,185.9,15.02145591]
[1755785930195,2.56,186.01,185.91,9.64165591]
[1755785930393,2.56,186.01,185.92,4.87465557]
[1755785930694,2.56,186.01,185.93,4.87465557]
[1755785930894,2.56,186.01,185.89,8.4399]
[1755785930895,2.56,186.01,185.94,4.87465557]
[1755785931094,2.56,186.01,185.95,4.88406092]
[1755785931295,2.56,186.01,185.89,3.06]
[1755785931492,2.56,186.01,185.9,9.66071289]
[1755785931693,2.56,186.01,185.91,4.88442589]
[1755785931990,2.56,186.01,185.92,4.88442589]
[1755785932294,2.56,185.99,185.93,4.88442589]
[1755785932490,8.79736676,185.98,185.84,3.06]
[1755785932695,8.79736676,185.98,185.85,9.67785443]
[1755785932895,8.79736676,185.98,185.86,9.67785443]
[1755785933098,8.79736676,185.98,185.87,9.67785443]
[1755785933290,8.79736676,185.98,185.88,9.67785443]
[1755785933489,2.56,185.99,185.89,4.89288586]
[1755785933686,2.56,185.99,185.9,4.89288586]
[1755785933890,2.56,185.99,185.91,4.89288586]
[1755785934096,8.79736676,186.0,185.92,4.89288586]
[1755785934289,8.79736676,186.0,185.93,4.89288586]
[1755785934490,2.56,186.0,185.94,4.89288586]
[1755785934695,11.35736676,185.99,185.95,4.89288586]
[1755785934901,11.35736676,185.99,185.88,2.78]
[1755785935097,11.35736676,185.99,185.89,9.69375841]
[1755785935391,8.79736676,186.03,185.9,9.69375841]
[1755785935593,8.79736676,186.03,185.91,12.47375841]
[1755785935790,8.79736676,186.03,185.93,2.78]
[1755785935990,8.79736676,186.03,185.94,9.69375841]
[1755785936194,2.56,186.05,185.95,9.71089906]
[1755785936496,11.35736676,186.05,185.96,9.71089906]
[1755785936695,11.35736676,186.05,185.97,4.9103975]
[1755785936895,11.35736676,186.05,185.98,4.9103975]
[1755785937096,11.35736676,186.05,185.93,2.78]
[1755785937097,11.35736676,186.05,185.99,4.9103975]
[1755785937292,11.35736676,186.05,185.93,2.78]
[1755785937293,2.56,186.03,186.0,4.9103975]
[1755785937594,2.56,186.02,186.01,4.91699149]
[1755785938896,3.1,186.02,185.9,2.78]
[1755785939091,2.56,186.02,185.91,4.8175159]
[1755785939288,2.56,186.02,185.92,4.8175159]
[1755785939500,2.56,186.02,185.93,4.8175159]
[1755785939691,2.56,186.02,185.94,4.8175159]
[1755785939995,2.56,186.02,185.95,4.8175159]
[1755785940292,8.79736676,186.01,185.96,4.8175159]
[1755785940498,8.79736676,185.97,185.86,4.4177793]
[1755785940887,8.79736676,185.97,185.85,2.78]
[1755785941092,2.56,185.99,185.85,7.1977793]
[1755785941301,2.56,185.99,185.86,4.4177793]
[1755785941491,8.79736676,185.96,185.85,2.78]
[1755785941697,2.56,185.95,185.82,4.4177793]
[1755785941993,8.79736676,185.92,185.8,7.1977793]
[1755785942196,8.79736676,185.92,185.8,2.78]
[1755785942397,8.79736676,185.92,185.81,4.4177793]
[1755785942801,8.79736676,185.92,185.8,7.1977793]
[1755785943194,8.79736676,185.92,185.8,2.78]
[1755785944297,8.79736676,185.88,185.76,4.4177793]
[1755785944500,8.79736676,185.88,185.74,2.78]
[1755785944501,8.79736676,185.88,185.74,7.1977793]
[1755785944890,8.79736676,185.84,185.74,2.78]
[1755785945396,2.56,185.83,185.7,4.45137889]
[1755785945608,8.79736676,185.87,185.71,2.78]
[1755785945800,8.79736676,185.88,185.72,2.78]
[1755785945996,2.56,185.83,185.72,2.78]
[1755785946896,8.79736676,185.8,185.72,2.78]
[1755785947396,2.56,185.83,185.72,2.78]
[1755785948302,8.79736676,185.8,185.72,2.78]
[1755785948499,11.35736676,185.8,185.66,2.78]
[1755785950096,8.79736676,185.76,185.66,2.78]
[1755785951402,2.56,185.71,185.59,2.78]
[1755785952201,11.35736676,185.76,185.59,2.78]
[1755785952401,11.35736676,185.76,185.63,2.78]
[1755785952897,11.35736676,185.76,185.64,5.3872]
[1755785953093,8.79736676,185.8,185.62,2.78]
[1755785953299,8.79736676,185.8,185.63,2.78]
[1755785953501,8.79736676,185.8,185.63,4.45137889]
[1755785953701,2.56,185.88,185.66,4.45137889]
[1755785953897,2.56,185.88,185.7,2.78]
[1755785954602,2.56,185.88,185.74,2.78]
[1755785955008,8.79736676,185.92,185.74,2.78]
[1755785955205,8.79736676,185.92,185.76,2.78]
[1755785955399,8.79736676,185.92,185.76,7.23137889]
[1755785955701,8.79736676,185.92,185.77,2.78]
[1755785955902,2.56,185.91,185.77,2.78]
[1755785958203,361.7,185.95,185.79,2.78]
[1755785958407,361.7,185.95,185.79,7.23137889]
[1755785958607,361.74,186.06,185.82,8.79736676]
[1755785958806,2.58,186.01,185.86,2.78]
[1755785959210,2.58,186.01,185.86,13.24874565]
[1755785959511,2.58,186.01,185.9,2.78]
[1755785960314,8.79736676,185.99,185.84,2.78]
[1755785960503,2.58,185.98,185.84,2.78]
[1755785963915,2.58,185.98,185.85,2.79]
[1755785964518,2.57,186.05,185.85,8.79736676]
[1755785964720,2.57,186.03,185.86,2.79]
[1755785965218,361.74,186.06,185.86,2.79]
[1755785965219,8.79736676,186.0,185.86,2.79]
[1755785965418,2.57,185.99,185.86,2.79]
[1755785966312,2.57,186.04,185.87,7.24137889]
[1755785966612,2.57,186.04,185.9,5.3798]
[1755785966813,2.57,186.04,185.88,2.79]
[1755785967920,2.57,186.04,185.88,8.1703]
[1755785968712,2.57,186.04,185.9,2.79]
[1755785969114,2.57,186.0,185.9,2.79]
[1755785970422,5.34780144,185.99,185.9,2.79]
[1755785970923,5.34780144,185.96,185.85,2.79]
[1755785971217,2.57,186.0,185.85,2.79]
[1755785971520,2.57,186.0,185.88,2.79]
[1755785971722,5.34780144,186.03,185.88,2.79]
[1755785972320,5.34780144,186.03,185.9,5.3796]
[1755785972520,5.34780144,186.03,185.91,2.79]
[1755785973518,141.84,186.05,185.86,2.79]
[1755785973519,5.34780144,186.0,185.86,2.79]
[1755785973821,2.57,186.04,185.88,2.79]
[1755785974023,5.34780144,186.03,185.9,5.3796]
[1755785974221,5.34780144,186.03,185.88,2.79]
[1755785974524,5.34780144,186.0,185.88,2.79]
[1755785974723,5.34780144,185.97,185.88,2.79]
[1755785975113,5.34780144,186.0,185.88,2.79]
[1755785976324,2.57,186.01,185.88,2.79]
[1755785976816,5.34780144,186.0,185.88,2.79]